[Event "*** Titled Tuesday 3|2 Blitz"]
[Site "Chess.com"]
[Date "2015.08.04"]
[Round "4"]
[White "Storne89"]
[Black "AnthonyWirig"]
[Result "1-0"]
[WhiteElo "2485"]
[BlackElo "2514"]
[TimeControl "180+2"]
[EndTime "12:20:29 PDT"]
[Termination "Storne89 won by resignation"]

1. e4 {[%clk 0:03:01.9]} 1... c5 {[%clk 0:03:00.6]} 2. Nf3 {[%clk 0:03:01.5]}
2... e6 {[%clk 0:03:02]} 3. d4 {[%clk 0:03:02]} 3... cxd4 {[%clk 0:03:03.9]} 4.
Nxd4 {[%clk 0:03:03.9]} 4... a6 {[%clk 0:03:05.2]} 5. c4 {[%clk 0:03:04.4]} 5...
Nf6 {[%clk 0:03:02.6]} 6. Nc3 {[%clk 0:03:05]} 6... Bb4 {[%clk 0:03:02.6]} 7.
Qf3 {[%clk 0:03:03.5]} 7... Nc6 {[%clk 0:02:55.6]} 8. Nxc6 {[%clk 0:02:53.1]}
8... dxc6 {[%clk 0:02:55.4]} 9. e5 {[%clk 0:02:53.5]} 9... Nd7 {[%clk 0:02:56]}
10. Qg3 {[%clk 0:02:53.9]} 10... Qa5 {[%clk 0:02:53.1]} 11. Bf4 {[%clk
0:02:33.1]} 11... h5 {[%clk 0:02:28.3]} 12. h4 {[%clk 0:02:26.9]} 12... b5
{[%clk 0:02:21.4]} 13. Be2 {[%clk 0:02:23.1]} 13... Bb7 {[%clk 0:02:20.3]} 14.
O-O {[%clk 0:02:19.5]} 14... g6 {[%clk 0:02:09.7]} 15. Ne4 {[%clk 0:02:19.4]}
15... O-O-O {[%clk 0:02:03.8]} 16. a3 {[%clk 0:02:18.2]} 16... Be7 {[%clk
0:02:02.3]} 17. b4 {[%clk 0:02:19.5]} 17... Qc7 {[%clk 0:01:54.2]} 18. cxb5
{[%clk 0:01:55.3]} 18... axb5 {[%clk 0:01:54.1]} 19. Nd6+ {[%clk 0:01:51.4]}
19... Bxd6 {[%clk 0:01:50.4]} 20. exd6 {[%clk 0:01:53.2]} 20... Qb8 {[%clk
0:01:43.3]} 21. a4 {[%clk 0:01:53.3]} 21... e5 {[%clk 0:01:44.3]} 22. Bg5 {[%clk
0:01:31.1]} 22... f6 {[%clk 0:01:44]} 23. axb5 {[%clk 0:01:32.6]} 23... Qxd6
{[%clk 0:01:19.8]} 24. bxc6 {[%clk 0:01:33.2]} 24... Bxc6 {[%clk 0:01:18.4]} 25.
Rfc1 {[%clk 0:01:26.4]} 25... Kb8 {[%clk 0:01:12.3]} 26. Qe3 {[%clk 0:01:18.3]}
26... Qd4 {[%clk 0:00:59.5]} 27. Qa3 {[%clk 0:01:11.3]} 27... Kc7 {[%clk
0:00:13.3]} 28. b5 {[%clk 0:00:47.7]} 28... Nb8 {[%clk 0:00:09.3]} 29. Be3
{[%clk 0:00:42.4]} 29... Qd5 {[%clk 0:00:09]} 30. bxc6 {[%clk 0:00:40.3]} 30...
Nxc6 {[%clk 0:00:10.4]} 31. Rab1 {[%clk 0:00:29.5]} 31... Ra8 {[%clk 0:00:09.5]}
32. Qe7+ {[%clk 0:00:28.4]} 32... Kc8 {[%clk 0:00:10.7]} 33. Qxf6 {[%clk
0:00:28.7]} 1-0

[Event "*** Titled Tuesday 3|2 Blitz"]
[Site "Chess.com"]
[Date "2015.08.04"]
[Round "4"]
[White "MattyDPerrine"]
[Black "WarlordX"]
[Result "0-1"]
[WhiteElo "2235"]
[BlackElo "2202"]
[TimeControl "180+2"]
[EndTime "12:20:29 PDT"]
[Termination "WarlordX won on time"]

1. d4 {[%clk 0:02:54.2]} 1... Nf6 {[%clk 0:03:00]} 2. c4 {[%clk 0:02:54.4]} 2...
e6 {[%clk 0:03:01.5]} 3. Nc3 {[%clk 0:02:54.9]} 3... Bb4 {[%clk 0:03:02.5]} 4.
Qc2 {[%clk 0:02:54.7]} 4... d5 {[%clk 0:03:01.6]} 5. cxd5 {[%clk 0:02:54.7]}
5... Nxd5 {[%clk 0:03:01.2]} 6. e4 {[%clk 0:02:46.5]} 6... Nxc3 {[%clk
0:03:02.1]} 7. bxc3 {[%clk 0:02:48.4]} 7... Be7 {[%clk 0:03:03]} 8. Nf3 {[%clk
0:02:48.6]} 8... c5 {[%clk 0:03:03.6]} 9. a3 {[%clk 0:02:32.2]} 9... cxd4 {[%clk
0:03:02.8]} 10. cxd4 {[%clk 0:02:33.3]} 10... O-O {[%clk 0:03:03.7]} 11. Bd3
{[%clk 0:02:34.1]} 11... Nc6 {[%clk 0:03:04]} 12. Bb2 {[%clk 0:02:34.8]} 12...
Qa5+ {[%clk 0:03:02.2]} 13. Bc3 {[%clk 0:02:34.2]} 13... Qh5 {[%clk 0:03:02.6]}
14. O-O {[%clk 0:02:20.4]} 14... b6 {[%clk 0:02:54.5]} 15. d5 {[%clk 0:02:21.4]}
15... Na5 {[%clk 0:02:19.9]} 16. Bxa5 {[%clk 0:01:07.6]} 16... bxa5 {[%clk
0:02:20.2]} 17. d6 {[%clk 0:01:08.6]} 17... Bxd6 {[%clk 0:02:00.6]} 18. Qc6
{[%clk 0:01:06.1]} 18... Bf4 {[%clk 0:01:17.5]} 19. Qxa8 {[%clk 0:00:45.5]}
19... Ba6 {[%clk 0:01:18.6]} 20. Qxf8+ {[%clk 0:00:26.5]} 20... Kxf8 {[%clk
0:01:20.5]} 21. Bxa6 {[%clk 0:00:28.3]} 21... g5 {[%clk 0:01:20.5]} 22. h3
{[%clk 0:00:22.7]} 22... Qg6 {[%clk 0:01:17.3]} 23. Rfe1 {[%clk 0:00:17.3]}
23... h5 {[%clk 0:01:17.5]} 24. Rab1 {[%clk 0:00:13.6]} 24... g4 {[%clk
0:01:17.9]} 25. hxg4 {[%clk 0:00:14.3]} 25... hxg4 {[%clk 0:01:19.8]} 26. Nh4
{[%clk 0:00:15.8]} 26... Qh5 {[%clk 0:01:07.6]} 27. g3 {[%clk 0:00:16.5]} 27...
Bd6 {[%clk 0:01:05.8]} 28. Re3 {[%clk 0:00:10.6]} 28... Kg7 {[%clk 0:01:00]} 29.
Rb7 {[%clk 0:00:10.8]} 29... Qe5 {[%clk 0:00:55.3]} 30. Rbb3 {[%clk 0:00:07.2]}
30... Bc5 {[%clk 0:00:53.4]} 31. Re1 {[%clk 0:00:04.9]} 31... Be7 {[%clk
0:00:54.3]} 32. Ng2 {[%clk 0:00:05.7]} 32... Bc5 {[%clk 0:00:48.9]} 33. Bd3
{[%clk 0:00:06.1]} 33... Qxg3 {[%clk 0:00:41.4]} 34. Re2 {[%clk 0:00:04]} 34...
Qe5 {[%clk 0:00:36.1]} 0-1

[Event "*** Titled Tuesday 3|2 Blitz"]
[Site "Chess.com"]
[Date "2015.08.04"]
[Round "4"]
[White "Genghis_K"]
[Black "Keaton87"]
[Result "1-0"]
[WhiteElo "2577"]
[BlackElo "2434"]
[TimeControl "180+2"]
[EndTime "12:20:42 PDT"]
[Termination "Genghis_K won on time"]

1. e4 {[%clk 0:02:54.4]} 1... c5 {[%clk 0:03:00.5]} 2. Nf3 {[%clk 0:02:55.8]}
2... d6 {[%clk 0:03:01.8]} 3. d4 {[%clk 0:02:57.3]} 3... Nf6 {[%clk 0:03:03.3]}
4. Nc3 {[%clk 0:02:58]} 4... cxd4 {[%clk 0:03:04.9]} 5. Nxd4 {[%clk 0:02:59.6]}
5... g6 {[%clk 0:03:06.6]} 6. Be3 {[%clk 0:03:00.4]} 6... Bg7 {[%clk 0:03:08.1]}
7. f3 {[%clk 0:03:02]} 7... O-O {[%clk 0:03:09.4]} 8. Qd2 {[%clk 0:03:03.6]}
8... Nc6 {[%clk 0:03:10.9]} 9. Bc4 {[%clk 0:03:05.2]} 9... Bd7 {[%clk
0:03:11.9]} 10. h4 {[%clk 0:03:06.4]} 10... Rc8 {[%clk 0:03:13]} 11. Bb3 {[%clk
0:03:06.8]} 11... h5 {[%clk 0:03:14.3]} 12. O-O-O {[%clk 0:03:07.4]} 12... Ne5
{[%clk 0:03:15.4]} 13. Kb1 {[%clk 0:03:08.9]} 13... Re8 {[%clk 0:03:14.7]} 14.
g4 {[%clk 0:03:09.1]} 14... hxg4 {[%clk 0:03:14.9]} 15. h5 {[%clk 0:03:10.7]}
15... Nxh5 {[%clk 0:03:15.4]} 16. Rdg1 {[%clk 0:03:11.5]} 16... Rxc3 {[%clk
0:02:22.9]} 17. bxc3 {[%clk 0:03:08.4]} 17... e6 {[%clk 0:02:15.8]} 18. Bh6
{[%clk 0:02:44.8]} 18... Qf6 {[%clk 0:02:07.7]} 19. fxg4 {[%clk 0:02:41.4]}
19... Bxh6 {[%clk 0:01:18.4]} 20. Qxh6 {[%clk 0:02:35.8]} 20... Qg7 {[%clk
0:01:19.6]} 21. Qd2 {[%clk 0:01:56.9]} 21... Nf6 {[%clk 0:01:19.9]} 22. g5
{[%clk 0:01:57.7]} 22... Nxe4 {[%clk 0:01:19.4]} 23. Qe3 {[%clk 0:01:53.4]}
23... d5 {[%clk 0:01:10.4]} 24. Rh4 {[%clk 0:01:49.4]} 24... Rc8 {[%clk
0:01:07.1]} 25. Rgh1 {[%clk 0:01:47.7]} 25... Rxc3 {[%clk 0:00:39.9]} 26. Rh8+
{[%clk 0:01:28.6]} 26... Qxh8 {[%clk 0:00:40.3]} 27. Rxh8+ {[%clk 0:01:29.8]}
27... Kxh8 {[%clk 0:00:42.2]} 28. Qf4 {[%clk 0:01:31.2]} 28... Nf3 {[%clk
0:00:14.5]} 29. Qxf7 {[%clk 0:01:08.5]} 29... Nxd4 {[%clk 0:00:15.6]} 30. Qxd7
{[%clk 0:01:05.8]} 30... Rf3 {[%clk 0:00:16.6]} 31. Qd8+ {[%clk 0:00:50.9]}
31... Kg7 {[%clk 0:00:16.7]} 32. Qc7+ {[%clk 0:00:51.8]} 32... Rf7 {[%clk
0:00:16]} 33. Qe5+ {[%clk 0:00:52.5]} 33... Kh7 {[%clk 0:00:14.2]} 34. Qxd4
{[%clk 0:00:53.1]} 34... b6 {[%clk 0:00:16.1]} 35. Qe5 {[%clk 0:00:53]} 35...
Nc5 {[%clk 0:00:17.1]} 36. Kb2 {[%clk 0:00:51.7]} 36... a5 {[%clk 0:00:12]} 37.
Qb8 {[%clk 0:00:51.4]} 37... Nd7 {[%clk 0:00:07.8]} 38. Qc7 {[%clk 0:00:45.2]}
1-0

[Event "*** Titled Tuesday 3|2 Blitz"]
[Site "Chess.com"]
[Date "2015.08.04"]
[Round "4"]
[White "BjarkeSahl"]
[Black "Carolina-moon"]
[Result "0-1"]
[WhiteElo "2109"]
[BlackElo "1986"]
[TimeControl "180+2"]
[EndTime "12:20:42 PDT"]
[Termination "Carolina-moon won by resignation"]

1. d4 {[%clk 0:03:01.9]} 1... f5 {[%clk 0:03:00.3]} 2. Nf3 {[%clk 0:02:57.4]}
2... Nf6 {[%clk 0:03:01.1]} 3. g3 {[%clk 0:02:59]} 3... g6 {[%clk 0:03:02.6]} 4.
Bg2 {[%clk 0:03:00.7]} 4... Bg7 {[%clk 0:03:04.2]} 5. O-O {[%clk 0:03:02.3]}
5... O-O {[%clk 0:03:05.8]} 6. c4 {[%clk 0:03:03.4]} 6... d6 {[%clk 0:03:07.4]}
7. b3 {[%clk 0:03:00.6]} 7... c6 {[%clk 0:02:45.6]} 8. Bb2 {[%clk 0:03:00.5]}
8... Qc7 {[%clk 0:02:45.6]} 9. e3 {[%clk 0:03:01.9]} 9... a5 {[%clk 0:02:43.9]}
10. a3 {[%clk 0:03:01]} 10... Ne4 {[%clk 0:02:31.6]} 11. Nbd2 {[%clk 0:02:58.6]}
11... Nxd2 {[%clk 0:02:31.7]} 12. Qxd2 {[%clk 0:02:53.6]} 12... e5 {[%clk
0:02:33.1]} 13. dxe5 {[%clk 0:02:25.8]} 13... dxe5 {[%clk 0:02:34.1]} 14. Rfd1
{[%clk 0:02:27.4]} 14... Na6 {[%clk 0:02:12.6]} 15. e4 {[%clk 0:02:14.2]} 15...
Nc5 {[%clk 0:02:03.7]} 16. exf5 {[%clk 0:01:58.7]} 16... Nxb3 {[%clk 0:01:57.6]}
17. Qc3 {[%clk 0:01:54.4]} 17... Nxa1 {[%clk 0:01:56.2]} 18. fxg6 {[%clk
0:01:50.8]} 18... hxg6 {[%clk 0:01:50.9]} 19. Rxa1 {[%clk 0:01:44.3]} 19... Bg4
{[%clk 0:01:51.2]} 20. Nxe5 {[%clk 0:01:43.3]} 20... Rae8 {[%clk 0:01:44.2]} 21.
f4 {[%clk 0:01:43.7]} 21... Qb6+ {[%clk 0:01:39]} 22. c5 {[%clk 0:01:39.9]}
22... Qb5 {[%clk 0:01:16.6]} 23. Re1 {[%clk 0:01:35.6]} 23... Bf5 {[%clk
0:00:48]} 24. Bf1 {[%clk 0:01:32.9]} 24... Qa4 {[%clk 0:00:43.7]} 25. Bc4+
{[%clk 0:01:27.2]} 25... Kh7 {[%clk 0:00:43.1]} 26. g4 {[%clk 0:01:20]} 26...
Bxg4 {[%clk 0:00:26.4]} 27. Re4 {[%clk 0:00:45.6]} 27... Qd1+ {[%clk 0:00:20]}
28. Re1 {[%clk 0:00:38.1]} 28... Bxe5 {[%clk 0:00:12.6]} 29. fxe5 {[%clk
0:00:31.1]} 29... Qf3 {[%clk 0:00:09.2]} 30. Re3 {[%clk 0:00:22.1]} 30... Qf2+
{[%clk 0:00:07.3]} 31. Kh1 {[%clk 0:00:18.2]} 31... Bf3+ {[%clk 0:00:06.4]} 32.
Rxf3 {[%clk 0:00:19.7]} 32... Rxf3 {[%clk 0:00:07.6]} 33. e6 {[%clk 0:00:19]}
33... Rxc3 {[%clk 0:00:07.7]} 0-1

[Event "*** Titled Tuesday 3|2 Blitz"]
[Site "Chess.com"]
[Date "2015.08.04"]
[Round "4"]
[White "WanderingPuppet"]
[Black "Prolta"]
[Result "1-0"]
[WhiteElo "2185"]
[BlackElo "1710"]
[TimeControl "180+2"]
[EndTime "12:20:57 PDT"]
[Termination "WanderingPuppet won by resignation"]

1. e4 {[%clk 0:03:01.9]} 1... e6 {[%clk 0:03:00.7]} 2. d4 {[%clk 0:03:02.4]}
2... d5 {[%clk 0:03:01.8]} 3. Nc3 {[%clk 0:03:03.9]} 3... Nf6 {[%clk 0:02:53.4]}
4. Bg5 {[%clk 0:03:04]} 4... Be7 {[%clk 0:02:53.7]} 5. e5 {[%clk 0:02:49.3]}
5... Nfd7 {[%clk 0:02:53.9]} 6. h4 {[%clk 0:02:50.2]} 6... a6 {[%clk 0:02:52.8]}
7. Qg4 {[%clk 0:02:29]} 7... Rg8 {[%clk 0:02:35.8]} 8. Nf3 {[%clk 0:02:14.4]}
8... h6 {[%clk 0:02:33.5]} 9. Bxh6 {[%clk 0:02:13.4]} 9... c5 {[%clk 0:02:28.4]}
10. dxc5 {[%clk 0:02:04.8]} 10... Bxc5 {[%clk 0:02:18]} 11. Bd3 {[%clk
0:02:00.9]} 11... Nf8 {[%clk 0:01:50.2]} 12. h5 {[%clk 0:01:38.7]} 12... Nc6
{[%clk 0:01:33.3]} 13. Bxg7 {[%clk 0:01:24.4]} 13... Be7 {[%clk 0:01:04.7]} 14.
h6 {[%clk 0:01:16.6]} 14... Qa5 {[%clk 0:00:41.7]} 15. h7 {[%clk 0:00:49.1]}
15... Nxh7 {[%clk 0:00:41.9]} 16. Bxh7 {[%clk 0:00:49.8]} 16... Rxg7 {[%clk
0:00:34.8]} 17. Qxg7 {[%clk 0:00:49.4]} 17... Bf8 {[%clk 0:00:32.2]} 18. Qg4
{[%clk 0:00:34.2]} 18... Bd7 {[%clk 0:00:30.2]} 19. O-O {[%clk 0:00:32.4]} 19...
O-O-O {[%clk 0:00:30.5]} 20. Bd3 {[%clk 0:00:27]} 20... Nb4 {[%clk 0:00:19.8]}
21. a3 {[%clk 0:00:26.2]} 21... Nc6 {[%clk 0:00:19.3]} 22. Rfe1 {[%clk
0:00:22.9]} 22... Ne7 {[%clk 0:00:11.5]} 23. Nd4 {[%clk 0:00:20.6]} 23... Ng6
{[%clk 0:00:13.4]} 24. Bxg6 {[%clk 0:00:20.2]} 24... fxg6 {[%clk 0:00:11.4]} 25.
Nce2 {[%clk 0:00:17.8]} 25... Bc5 {[%clk 0:00:13.3]} 26. b4 {[%clk 0:00:18.2]}
26... Bxb4 {[%clk 0:00:14]} 27. axb4 {[%clk 0:00:18.9]} 27... Qb6 {[%clk
0:00:15.7]} 28. c3 {[%clk 0:00:19]} 28... Kb8 {[%clk 0:00:17]} 29. Rab1 {[%clk
0:00:19.8]} 29... Qc6 {[%clk 0:00:18.9]} 30. Nxc6+ {[%clk 0:00:20.3]} 30... Bxc6
{[%clk 0:00:18.8]} 31. Nd4 {[%clk 0:00:22.2]} 31... Re8 {[%clk 0:00:18.8]} 32.
Nxc6+ {[%clk 0:00:22.9]} 32... bxc6 {[%clk 0:00:16.1]} 33. Qxg6 {[%clk
0:00:24.8]} 33... Rc8 {[%clk 0:00:16.1]} 34. Qxe6 {[%clk 0:00:25.3]} 34... Kb7
{[%clk 0:00:18]} 35. Qd7+ {[%clk 0:00:25.9]} 35... Rc7 {[%clk 0:00:19.9]} 36.
Qd6 {[%clk 0:00:27.8]} 36... Rc8 {[%clk 0:00:20.2]} 37. e6 {[%clk 0:00:29.1]}
37... Rc7 {[%clk 0:00:22.1]} 38. e7 {[%clk 0:00:30.3]} 38... Rc8 {[%clk
0:00:24]} 39. e8=Q {[%clk 0:00:31.6]} 39... Rc7 {[%clk 0:00:25.9]} 40. Qed8
{[%clk 0:00:31.6]} 40... Rc8 {[%clk 0:00:27.8]} 41. Q8d7+ {[%clk 0:00:32.3]} 1-0

[Event "*** Titled Tuesday 3|2 Blitz"]
[Site "Chess.com"]
[Date "2015.08.04"]
[Round "4"]
[White "Tesla37"]
[Black "Imre91"]
[Result "0-1"]
[WhiteElo "2523"]
[BlackElo "2614"]
[TimeControl "180+2"]
[EndTime "12:21:10 PDT"]
[Termination "Imre91 won on time"]

1. e4 {[%clk 0:03:01.9]} 1... e6 {[%clk 0:02:59.7]} 2. d4 {[%clk 0:03:01.9]}
2... d5 {[%clk 0:02:58.1]} 3. Nd2 {[%clk 0:03:02.6]} 3... Nc6 {[%clk 0:02:58.1]}
4. Ngf3 {[%clk 0:03:01.2]} 4... Nf6 {[%clk 0:02:58.1]} 5. e5 {[%clk 0:03:02.4]}
5... Nd7 {[%clk 0:02:58.6]} 6. Be2 {[%clk 0:03:04]} 6... f6 {[%clk 0:02:57.9]}
7. exf6 {[%clk 0:03:05]} 7... Nxf6 {[%clk 0:02:57.7]} 8. O-O {[%clk 0:03:04.4]}
8... Bd6 {[%clk 0:02:59]} 9. c4 {[%clk 0:03:03]} 9... O-O {[%clk 0:02:59.5]} 10.
c5 {[%clk 0:02:58.3]} 10... Bf4 {[%clk 0:02:58.2]} 11. Bb5 {[%clk 0:02:54.4]}
11... Bd7 {[%clk 0:02:55.6]} 12. Nb3 {[%clk 0:02:51.4]} 12... Ne4 {[%clk
0:02:55]} 13. Be3 {[%clk 0:02:48.1]} 13... Qf6 {[%clk 0:02:51.6]} 14. Re1 {[%clk
0:02:35.9]} 14... Qh6 {[%clk 0:02:38.8]} 15. Qe2 {[%clk 0:02:22.2]} 15... g5
{[%clk 0:02:23.6]} 16. Bxf4 {[%clk 0:02:20.5]} 16... Rxf4 {[%clk 0:02:23]} 17.
Qe3 {[%clk 0:02:14.8]} 17... Raf8 {[%clk 0:02:20.9]} 18. Re2 {[%clk 0:02:02.5]}
18... g4 {[%clk 0:02:06.3]} 19. Nfd2 {[%clk 0:01:56.6]} 19... Ng5 {[%clk
0:01:55.3]} 20. Qg3 {[%clk 0:01:40.2]} 20... Qf6 {[%clk 0:01:25.7]} 21. Rae1
{[%clk 0:01:08.1]} 21... h5 {[%clk 0:01:23.4]} 22. Qe3 {[%clk 0:00:50.9]} 22...
h4 {[%clk 0:01:00.6]} 23. Bxc6 {[%clk 0:00:47.3]} 23... Bxc6 {[%clk 0:01:00.4]}
24. Qe5 {[%clk 0:00:48.9]} 24... Qg6 {[%clk 0:00:49.3]} 25. Qxc7 {[%clk
0:00:40.6]} 25... Nf3+ {[%clk 0:00:32.8]} 26. Kf1 {[%clk 0:00:19.3]} 26... Nxh2+
{[%clk 0:00:32]} 27. Kg1 {[%clk 0:00:20.5]} 27... Nf3+ {[%clk 0:00:32.9]} 28.
Kf1 {[%clk 0:00:22.1]} 28... Nxe1 {[%clk 0:00:34.2]} 29. Kxe1 {[%clk 0:00:23.2]}
29... Bb5 {[%clk 0:00:25.7]} 30. Re5 {[%clk 0:00:22.9]} 30... Rxf2 {[%clk
0:00:25.3]} 31. Qe7 {[%clk 0:00:18.5]} 31... Rf1+ {[%clk 0:00:16.8]} 32. Nxf1
{[%clk 0:00:18.8]} 32... Qb1+ {[%clk 0:00:18.1]} 33. Kd2 {[%clk 0:00:17.7]}
33... Qd3+ {[%clk 0:00:18.9]} 34. Kc1 {[%clk 0:00:16.5]} 34... Rxf1+ {[%clk
0:00:19.5]} 0-1

[Event "*** Titled Tuesday 3|2 Blitz"]
[Site "Chess.com"]
[Date "2015.08.04"]
[Round "4"]
[White "hansen"]
[Black "Konavets"]
[Result "1-0"]
[WhiteElo "2492"]
[BlackElo "2453"]
[TimeControl "180+2"]
[EndTime "12:21:17 PDT"]
[Termination "hansen won by resignation"]

1. e4 {[%clk 0:03:01.9]} 1... c5 {[%clk 0:02:54.9]} 2. Nf3 {[%clk 0:03:02.8]}
2... e6 {[%clk 0:02:55.9]} 3. d4 {[%clk 0:03:03.8]} 3... cxd4 {[%clk 0:02:57.8]}
4. Nxd4 {[%clk 0:03:05.2]} 4... a6 {[%clk 0:02:59.4]} 5. Bd3 {[%clk 0:02:49.9]}
5... Bc5 {[%clk 0:02:59.2]} 6. Nb3 {[%clk 0:02:50.9]} 6... Ba7 {[%clk
0:03:00.2]} 7. Qg4 {[%clk 0:02:46.2]} 7... Nf6 {[%clk 0:02:59]} 8. Qg3 {[%clk
0:02:40.4]} 8... O-O {[%clk 0:02:53.5]} 9. Nc3 {[%clk 0:02:37.1]} 9... Nc6
{[%clk 0:02:52.5]} 10. Bg5 {[%clk 0:02:29.4]} 10... Nh5 {[%clk 0:02:49]} 11. Qh4
{[%clk 0:02:24.7]} 11... f6 {[%clk 0:02:49.3]} 12. Bd2 {[%clk 0:02:21.1]} 12...
g6 {[%clk 0:02:47.9]} 13. O-O-O {[%clk 0:02:18]} 13... Ne5 {[%clk 0:02:25.3]}
14. Be2 {[%clk 0:02:16.2]} 14... Ng7 {[%clk 0:02:26]} 15. f4 {[%clk 0:02:08.9]}
15... Nf7 {[%clk 0:02:26.9]} 16. Bf3 {[%clk 0:02:02.3]} 16... d6 {[%clk
0:02:24.7]} 17. Kb1 {[%clk 0:02:00.2]} 17... Bd7 {[%clk 0:01:52]} 18. Bc1 {[%clk
0:01:43.1]} 18... Rc8 {[%clk 0:01:47.6]} 19. e5 {[%clk 0:01:31.8]} 19... fxe5
{[%clk 0:01:44.9]} 20. Qxd8 {[%clk 0:01:32.6]} 20... Rcxd8 {[%clk 0:01:41.6]}
21. Bxb7 {[%clk 0:01:27.6]} 21... exf4 {[%clk 0:01:42.6]} 22. Bxf4 {[%clk
0:01:27.6]} 22... e5 {[%clk 0:01:43.6]} 23. Bc1 {[%clk 0:01:25.5]} 23... Bg4
{[%clk 0:01:35.8]} 24. Rdf1 {[%clk 0:01:22.4]} 24... Ne6 {[%clk 0:01:36.6]} 25.
h3 {[%clk 0:01:18.1]} 25... Rb8 {[%clk 0:01:28.3]} 26. Bd5 {[%clk 0:01:12.6]}
26... Bf5 {[%clk 0:01:21.5]} 27. g4 {[%clk 0:01:12.7]} 27... Rxb3 {[%clk
0:01:17.3]} 28. gxf5 {[%clk 0:00:59.8]} 28... Rxc3 {[%clk 0:01:15.1]} 29. fxe6
{[%clk 0:00:58.2]} 29... Rc5 {[%clk 0:01:16.5]} 30. exf7+ {[%clk 0:00:54]} 30...
Kg7 {[%clk 0:01:18.2]} 31. c4 {[%clk 0:00:54.9]} 31... h6 {[%clk 0:01:15.7]} 32.
Rd1 {[%clk 0:00:37.4]} 32... Rc7 {[%clk 0:01:14.7]} 33. Rhf1 {[%clk 0:00:38.5]}
33... Bd4 {[%clk 0:01:15.5]} 34. b3 {[%clk 0:00:38.8]} 34... Re7 {[%clk
0:01:15.9]} 35. Bb2 {[%clk 0:00:40.1]} 35... Bc5 {[%clk 0:01:16.3]} 36. Kc2
{[%clk 0:00:40.6]} 36... a5 {[%clk 0:01:17.6]} 37. Bc3 {[%clk 0:00:42]} 37...
Ra7 {[%clk 0:01:18.4]} 38. h4 {[%clk 0:00:41.6]} 38... Rb8 {[%clk 0:01:18.2]}
39. Rf3 {[%clk 0:00:37.5]} 39... Kf8 {[%clk 0:01:19.3]} 40. Rdf1 {[%clk
0:00:36.3]} 40... a4 {[%clk 0:01:20.4]} 41. Bd2 {[%clk 0:00:34.1]} 41... axb3+
{[%clk 0:01:21.1]} 42. axb3 {[%clk 0:00:35.6]} 42... Ra2+ {[%clk 0:01:21.8]} 43.
Kd1 {[%clk 0:00:34.9]} 43... Ra1+ {[%clk 0:01:16.8]} 44. Ke2 {[%clk 0:00:35.9]}
44... Ra2 {[%clk 0:01:18.4]} 45. Rd1 {[%clk 0:00:20.2]} 45... Kg7 {[%clk
0:00:49.5]} 46. Kf1 {[%clk 0:00:18.6]} 46... Rf8 {[%clk 0:00:50.8]} 47. Be3
{[%clk 0:00:18.4]} 47... Bb4 {[%clk 0:00:51.6]} 48. Rf2 {[%clk 0:00:18.9]} 48...
Ra3 {[%clk 0:00:52.3]} 49. Rd3 {[%clk 0:00:20.5]} 49... Ra1+ {[%clk 0:00:48.5]}
50. Kg2 {[%clk 0:00:21.9]} 50... Re1 {[%clk 0:00:50.3]} 51. Bb6 {[%clk
0:00:22.9]} 51... e4 {[%clk 0:00:51.1]} 52. Re3 {[%clk 0:00:23.7]} 52... Rxe3
{[%clk 0:00:48.2]} 53. Bxe3 {[%clk 0:00:25.4]} 53... Bc3 {[%clk 0:00:50.1]} 54.
Bxe4 {[%clk 0:00:26.8]} 54... Rxf7 {[%clk 0:00:50.8]} 55. Bxh6+ {[%clk
0:00:28.1]} 55... Kg8 {[%clk 0:00:52.4]} 56. Bd5 {[%clk 0:00:29.3]} 1-0

[Event "*** Titled Tuesday 3|2 Blitz"]
[Site "Chess.com"]
[Date "2015.08.04"]
[Round "4"]
[White "chessking2151"]
[Black "NowInChess"]
[Result "1-0"]
[WhiteElo "2005"]
[BlackElo "1957"]
[TimeControl "180+2"]
[EndTime "12:21:35 PDT"]
[Termination "chessking2151 won by checkmate"]

1. e4 {[%clk 0:03:01.9]} 1... e6 {[%clk 0:03:00.4]} 2. d4 {[%clk 0:03:02]} 2...
d5 {[%clk 0:03:01.3]} 3. Nd2 {[%clk 0:03:02.9]} 3... Nf6 {[%clk 0:03:01.6]} 4.
e5 {[%clk 0:03:03.1]} 4... Nfd7 {[%clk 0:03:02.8]} 5. f4 {[%clk 0:03:03.7]} 5...
c5 {[%clk 0:03:03.3]} 6. Ngf3 {[%clk 0:03:04.9]} 6... Nc6 {[%clk 0:03:04.1]} 7.
c3 {[%clk 0:03:05.7]} 7... Qb6 {[%clk 0:03:04.3]} 8. Nb3 {[%clk 0:03:05]} 8...
c4 {[%clk 0:02:50.8]} 9. Nbd2 {[%clk 0:03:05.2]} 9... Be7 {[%clk 0:02:50.5]} 10.
Be2 {[%clk 0:03:05.7]} 10... Qa5 {[%clk 0:02:50.3]} 11. Nf1 {[%clk 0:02:54.4]}
11... b5 {[%clk 0:02:47.9]} 12. Ne3 {[%clk 0:02:52.8]} 12... b4 {[%clk
0:02:47.3]} 13. Bd2 {[%clk 0:02:54]} 13... g6 {[%clk 0:02:33]} 14. Qc2 {[%clk
0:02:50.4]} 14... b3 {[%clk 0:02:27.2]} 15. Qb1 {[%clk 0:02:46]} 15... bxa2
{[%clk 0:02:27]} 16. Rxa2 {[%clk 0:02:43.4]} 16... Qb5 {[%clk 0:02:23.4]} 17. h4
{[%clk 0:02:39.2]} 17... h5 {[%clk 0:02:21.7]} 18. Bd1 {[%clk 0:02:29.7]} 18...
Nb6 {[%clk 0:02:11]} 19. Bc2 {[%clk 0:02:22.4]} 19... Bd7 {[%clk 0:02:07.3]} 20.
Kf2 {[%clk 0:01:58.3]} 20... Na5 {[%clk 0:02:05.3]} 21. g4 {[%clk 0:01:54.9]}
21... Nb3 {[%clk 0:01:59.7]} 22. f5 {[%clk 0:01:39.3]} 22... hxg4 {[%clk
0:01:46.8]} 23. fxg6 {[%clk 0:01:39.6]} 23... gxf3 {[%clk 0:01:41.1]} 24. gxf7+
{[%clk 0:01:40.2]} 24... Kd8 {[%clk 0:01:30.9]} 25. Be1 {[%clk 0:01:33.3]} 25...
Kc7 {[%clk 0:01:22.6]} 26. Kxf3 {[%clk 0:01:31.5]} 26... Bxh4 {[%clk 0:01:13]}
27. Qd1 {[%clk 0:01:16]} 27... Bxe1 {[%clk 0:01:01.9]} 28. Qxe1 {[%clk
0:01:16.6]} 28... Rhf8 {[%clk 0:00:57.2]} 29. Rh7 {[%clk 0:01:15.5]} 29... Be8
{[%clk 0:00:52.2]} 30. Bg6 {[%clk 0:01:14.5]} 30... Kc6 {[%clk 0:00:36.8]} 31.
Kg2 {[%clk 0:01:05.5]} 31... Bd7 {[%clk 0:00:34.4]} 32. Ng4 {[%clk 0:01:05.4]}
32... a5 {[%clk 0:00:22.5]} 33. Nf6 {[%clk 0:00:58.5]} 33... a4 {[%clk
0:00:22.6]} 34. Rg7 {[%clk 0:00:50.7]} 34... a3 {[%clk 0:00:19.3]} 35. bxa3
{[%clk 0:00:52]} 35... Na4 {[%clk 0:00:19.5]} 36. Rf2 {[%clk 0:00:52.4]} 36...
Qa5 {[%clk 0:00:12.5]} 37. Nh7 {[%clk 0:00:37.4]} 37... Nxd4 {[%clk 0:00:11.8]}
38. Nxf8 {[%clk 0:00:37.9]} 38... Rxf8 {[%clk 0:00:12.9]} 39. Rg8 {[%clk
0:00:37.4]} 39... Nb5 {[%clk 0:00:04.7]} 40. Rxf8 {[%clk 0:00:36.4]} 40... Nbxc3
{[%clk 0:00:05.5]} 41. Rc8+ {[%clk 0:00:35.3]} 41... Bxc8 {[%clk 0:00:05.8]} 42.
f8=Q {[%clk 0:00:36.7]} 42... Qc7 {[%clk 0:00:06]} 43. Rf7 {[%clk 0:00:31.7]}
43... Qb8 {[%clk 0:00:05.9]} 44. Bc2 {[%clk 0:00:26.9]} 44... Qa8 {[%clk
0:00:02.9]} 45. Bxa4+ {[%clk 0:00:25.4]} 45... Nxa4 {[%clk 0:00:03.7]} 46. Qd6+
{[%clk 0:00:26.2]} 46... Kb5 {[%clk 0:00:04.1]} 47. Qeb4# {[%clk 0:00:27.8]} 1-0